bitfinex-derivatives/quotes_ETHF0:USTF0_20250629
["timestamp","ask_amount","ask_price","bid_price","bid_amount"]
[1751240739179,3.84703,2502.4,2502.3,24.67]
[1751240739680,5.462809,2502.4,2501.8,4.2994]
[1751240739879,1.59807,2502.5,2501.7,1.1216]
[1751240739880,0.63938,2501.8,2501.7,1.1216]
[1751240740083,2.894389,2501.8,2501.7,1.1216]
[1751240740386,0.63941,2501.7,2501.6,6.47]
[1751240740584,0.63941,2501.7,2501.6,31.132]
[1751240741174,2.894399,2501.8,2501.6,31.132]
[1751240741378,1.14,2502.0,2501.6,31.132]
[1751240741582,1.14,2502.0,2501.8,0.63937]
[1751240741778,0.63936,2501.9,2501.7,25.30039]
[1751240742878,0.63936,2501.9,2501.8,0.63938]
[1751240743979,0.63936,2501.9,2501.8,1.76968]
[1751240744181,1.14,2502.0,2501.8,1.76968]
[1751240744182,3.2078,2502.1,2502.0,0.63933]
[1751240744377,1.0859,2502.2,2502.1,0.63931]
[1751240744583,0.63924,2502.4,2502.2,0.63928]
[1751240745081,0.63925,2502.3,2502.2,0.63928]
[1751240745581,0.63924,2502.4,2502.3,0.63925]
[1751240745781,0.63924,2502.4,2502.2,0.63927]
[1751240745980,5.462809,2502.5,2502.2,0.63927]
[1751240746282,0.63924,2502.4,2502.2,0.63927]
[1751240747386,0.63923,2502.4,2502.3,0.63925]
[1751240747582,6.102029,2502.5,2502.0,31.129]
[1751240747786,3.2078,2502.5,2502.4,0.63923]
[1751240747983,3.847,2502.5,2502.4,0.63923]
[1751240748385,3.2078,2502.5,2502.4,0.63923]
[1751240748583,3.847,2502.5,2502.4,0.63923]
[1751240748881,2.1552,2502.6,2502.3,24.656]
[1751240748882,2.79439,2502.6,2502.5,0.6392]
[1751240749086,2.79439,2502.6,2502.4,0.63921]
[1751240749283,2.79439,2502.6,2502.5,0.6392]
[1751240749989,6.00219,2502.6,2502.5,0.6392]
[1751240750589,6.0022,2502.6,2502.5,0.6392]
[1751240750789,3.847,2502.6,2502.5,0.6392]
[1751240751084,3.2078,2502.6,2502.5,0.6392]
[1751240751291,3.2078,2502.6,2502.4,24.652]
[1751240751492,3.402509,2502.5,2502.3,24.652]
[1751240751892,3.402509,2502.5,2502.1,31.105]
[1751240752092,3.402509,2502.5,2502.0,0.63931]
[1751240752093,2.255009,2502.3,2502.0,0.63931]
[1751240752290,0.6393,2502.2,2502.1,0.63931]
[1751240752693,0.63931,2502.1,2502.0,31.74331]
[1751240752896,0.63931,2502.1,2502.0,0.63931]
[1751240753197,0.63922,2502.5,2502.3,0.63924]
[1751240753396,0.6392,2502.5,2502.4,25.28923]
[1751240753695,3.2078,2502.6,2502.5,0.6392]
[1751240754096,2.85404,2502.8,2502.4,24.65]
[1751240754296,2.85404,2502.8,2502.7,0.63915]
[1751240754595,2.2149,2502.8,2502.7,0.63915]
[1751240754999,3.2078,2502.9,2502.8,0.63913]
[1751240755299,3.2078,2502.9,2502.8,2.894139]
[1751240755495,3.2078,2502.9,2502.8,11.877839]
[1751240755697,3.2078,2502.9,2502.8,13.052639]
[1751240755996,3.2078,2502.9,2502.8,35.44463]
[1751240756398,3.2078,2502.9,2502.6,6.454]
[1751240756702,0.63918,2502.6,2502.4,0.63921]
[1751240756901,2.255009,2502.5,2502.1,4.80536263]
[1751240757100,2.255009,2502.5,2502.0,2.36512252]
[1751240757101,0.63931,2502.1,2502.0,1.59756263]
[1751240757296,0.63931,2502.1,2502.0,26.24456263]
[1751240757496,0.63931,2502.1,2502.0,24.647]
[1751240757699,1.0702,2502.2,2502.1,0.63931]
[1751240757999,1.80374,2502.4,2502.0,26.902009]
[1751240758200,1.1645,2502.4,2502.3,0.63925]
[1751240758399,0.63922,2502.5,2502.0,28.329809]
[1751240758400,3.84699,2502.6,2502.4,0.63922]
[1751240758602,5.01149,2502.6,2502.4,0.63922]
[1751240758801,0.6392,2502.5,2502.4,0.63922]
[1751240759001,5.01149,2502.6,2502.4,0.63922]
[1751240759203,4.3723,2502.6,2502.5,0.6392]
[1751240759503,3.2078,2502.6,2502.5,0.6392]
[1751240759703,1.0702,2502.7,2502.6,0.63918]
[1751240760301,0.63919,2502.6,2502.5,24.643]
[1751240760800,1.70937,2502.7,2502.5,25.2822]
[1751240761603,0.63918,2502.6,2502.5,25.2822]
[1751240761804,1.70937,2502.7,2502.5,25.2822]
[1751240762003,1.81565,2502.8,2502.6,0.63918]
[1751240762303,0.63915,2502.7,2502.5,25.28219]
[1751240762603,1.1765,2502.8,2502.5,25.28219]
[1751240762803,0.63918,2502.6,2502.5,24.643]
[1751240763001,0.63917,2502.7,2502.5,25.2822]
[1751240763505,1.1765,2502.8,2502.6,0.63917]
[1751240763506,0.63914,2502.8,2502.6,0.63917]
[1751240763705,3.84692,2502.9,2502.7,0.63915]
[1751240763907,3.2078,2502.9,2502.8,0.63913]
[1751240764600,3.2078,2502.9,2502.8,2.05463]
[1751240765202,3.2078,2502.9,2502.7,1.1124]
[1751240765402,3.2078,2502.9,2502.7,25.7514]
[1751240765403,0.63913,2502.8,2502.7,25.7514]
[1751240765699,6.101929,2502.9,2502.7,26.39055]
[1751240765904,6.101929,2502.9,2502.8,40.8]
[1751240766106,3.2078,2502.9,2502.8,41.43913]
[1751240766307,3.2078,2502.9,2502.8,45.109639]
[1751240766707,3.2078,2502.9,2502.8,46.70720163]
[1751240767004,3.2078,2502.9,2502.8,44.45219263]
[1751240767308,3.2078,2502.9,2502.8,73.94463]
[1751240767707,3.2078,2502.9,2502.8,75.54219263]
[1751240768109,3.2078,2503.2,2503.1,0.63905]
[1751240768308,3.2078,2503.2,2503.1,25.27605]
[1751240769210,3.2078,2503.6,2503.4,0.63896]
[1751240769411,3.84675,2503.6,2503.5,1.1216]
[1751240770210,3.2078,2503.6,2503.5,1.76055]
[1751240770609,3.84672,2503.6,2503.5,1.76055]
[1751240771313,3.2078,2503.6,2503.5,1.76055]
[1751240771709,3.2078,2503.6,2503.5,3.08095]
[1751240772112,3.84672,2503.6,2503.5,3.08095]
[1751240772312,3.2078,2503.6,2503.5,3.08095]
[1751240773004,4.99356,2503.9,2503.7,0.63889]
[1751240773207,4.99356,2503.9,2503.8,0.63887]
[1751240773614,3.84666,2503.9,2503.8,0.63887]
[1751240773810,0.63887,2503.8,2503.7,24.631]
[1751240774210,3.84666,2503.9,2503.7,25.2699]
[1751240774515,3.2078,2503.9,2503.8,0.63887]
[1751240774909,3.2078,2503.9,2503.8,41.43887]
[1751240775110,1.3629,2504.3,2503.8,41.43887]
[1751240775111,0.63871,2504.5,2503.9,1.59709]
[1751240775311,0.63871,2504.5,2504.4,2.255009]
[1751240775512,3.84649,2504.6,2504.4,24.63]
[1751240775711,3.84649,2504.6,2504.4,25.26872]
[1751240775905,0.63869,2504.5,2504.3,1.79603]
[1751240776106,0.63869,2504.5,2504.4,25.26672]
[1751240776715,1.129,2504.7,2504.3,7.6083]
[1751240776716,0.63872,2504.4,2504.3,7.6083]
[1751240776910,0.63872,2504.4,2504.3,32.2353]
[1751240777314,0.63874,2504.3,2504.2,9.6588]
[1751240777520,0.63874,2504.3,2504.2,34.2858]
[1751240778417,1.79334,2504.3,2504.2,34.2858]
[1751240778920,1.79334,2504.3,2504.2,27.8318]
[1751240780414,1.79334,2504.3,2504.2,3.2078]
[1751240780614,1.79334,2504.3,2504.2,27.8298]
[1751240780813,3.10554,2504.3,2504.2,27.8298]
[1751240781014,1.79334,2504.3,2504.2,27.8298]
[1751240781217,0.63874,2504.3,2504.2,27.8298]
[1751240781717,0.63871,2504.5,2504.2,27.8298]
[1751240782020,0.63871,2504.5,2504.4,0.63872]
[1751240782219,0.63871,2504.5,2504.3,10.72793]
[1751240782420,0.63868,2504.6,2504.4,0.63872]
[1751240782717,0.63868,2504.6,2504.5,24.62]
[1751240783917,0.63867,2504.6,2504.5,24.62]
[1751240786128,0.63867,2504.6,2504.5,28.46649]
[1751240786329,0.63867,2504.6,2504.5,27.8278]
[1751240787528,8.03645,2505.0,2504.9,0.63858]
[1751240787529,0.63859,2505.0,2504.9,0.63858]
[1751240787822,0.63859,2504.9,2504.8,25.2556]
[1751240788122,1.1173,2505.2,2504.8,25.7784]
[1751240788323,0.63858,2505.0,2504.9,0.63858]
[1751240789123,0.63858,2505.0,2504.8,27.1439]
[1751240789124,0.63859,2504.9,2504.8,27.1439]
[1751240789324,0.63859,2504.9,2504.8,32.85602]
[1751240789520,0.63859,2504.9,2504.8,36.06382]
[1751240789723,0.63859,2504.9,2504.8,35.4252]
[1751240790226,1.1173,2505.2,2504.8,35.4252]
[1751240790427,0.63855,2505.1,2505.0,0.63856]
[1751240790627,0.63855,2505.1,2505.0,28.45936]
[1751240791328,0.63853,2505.2,2505.0,28.45937]
[1751240791528,0.63854,2505.1,2505.0,27.8208]
[1751240792216,0.63854,2505.1,2504.8,49.042]
[1751240792217,0.63859,2504.9,2504.8,41.9644]
[1751240792423,0.63859,2504.9,2504.8,3.2078]
[1751240792822,1.96599,2504.9,2504.8,3.2078]
[1751240793826,0.63869,2504.5,2504.4,44.0078]
[1751240794029,0.63869,2504.5,2504.4,68.6158]
[1751240794227,0.63869,2504.5,2504.4,44.0078]
[1751240794531,0.63869,2504.5,2504.4,3.2078]
[1751240795131,2.07719,2504.5,2504.4,3.2078]
[1751240798327,0.63869,2504.5,2504.4,3.2078]
[1751240798829,2.9355,2504.9,2504.4,3.2078]
[1751240798830,4.80427,2505.0,2504.4,3.2078]
[1751240799028,3.2078,2505.0,2504.6,0.63866]
[1751240799228,3.2078,2505.0,2504.5,66.577]
[1751240799229,0.63858,2505.0,2504.7,3.2078]
[1751240799422,0.63858,2505.0,2504.9,0.63859]
[1751240799629,1.59649,2504.9,2504.0,3.2078]
[1751240799827,0.6388,2504.1,2504.0,27.8698]
[1751240800030,0.6388,2504.1,2504.0,69.30862]
[1751240800229,0.6388,2504.1,2504.0,68.6698]
[1751240801334,0.6388,2504.1,2504.0,69.30862]
[1751240801530,0.6388,2504.1,2504.0,68.6698]
[1751240802632,0.6388,2504.1,2504.0,69.30862]
[1751240802831,0.6388,2504.1,2504.0,70.70112]
[1751240803233,0.6388,2504.1,2504.0,70.0623]
[1751240803638,0.6388,2504.1,2504.0,70.70112]
[1751240804132,0.6388,2504.1,2504.0,70.0623]
[1751240804629,3.2078,2504.5,2504.0,70.0623]
[1751240804834,3.2078,2504.5,2504.1,6.439]
[1751240805134,0.6388,2504.1,2504.0,27.8478]
[1751240805432,0.6388,2504.1,2504.0,3.2078]
[1751240805635,0.6388,2504.1,2504.0,27.8538]
[1751240806030,0.63882,2504.0,2503.9,24.647]
[1751240807834,0.6389,2503.7,2503.6,3.2078]
[1751240808038,0.6389,2503.7,2503.6,28.9585]
[1751240808235,0.6389,2503.7,2503.6,71.1854]
[1751240808435,0.6389,2503.7,2503.6,71.82432]
[1751240808730,0.6389,2503.7,2503.6,71.1854]
[1751240809135,0.63889,2503.8,2503.7,0.63889]
[1751240809335,0.63887,2503.8,2503.7,0.63889]
[1751240809635,0.63886,2503.9,2503.8,0.63886]
[1751240809833,0.63884,2504.0,2503.9,0.63884]
[1751240810133,0.63885,2503.9,2503.7,1.3934]
[1751240810339,1.0562,2504.2,2503.8,28.51766]
[1751240810636,0.63885,2503.9,2503.8,28.51766]
[1751240810835,0.63885,2504.0,2503.9,0.63884]
[1751240811036,0.63885,2504.0,2503.9,7.8644]
[1751240811241,0.63885,2504.0,2503.9,6.471]
[1751240811538,1.0562,2504.2,2503.8,29.59606]
[1751240811539,0.63885,2503.9,2503.8,4.2862]
[1751240811739,0.63885,2503.9,2503.8,35.4202]
[1751240812534,0.63885,2503.9,2503.8,10.7572]
[1751240812741,0.63885,2503.9,2503.8,35.4182]
[1751240815346,0.63883,2504.0,2503.9,0.63882]
[1751240815545,0.63885,2503.9,2503.8,36.05705]
[1751240816741,0.63885,2503.9,2503.8,35.4182]
[1751240817146,0.63883,2504.0,2503.8,4.2862]
[1751240817341,0.63883,2504.0,2503.9,25.28183]
[1751240817749,0.63883,2504.0,2503.9,24.643]
[1751240817942,0.63883,2504.0,2503.9,25.28185]
[1751240818338,5.81323203,2504.4,2503.9,24.643]
[1751240818542,0.63877,2504.3,2504.2,0.63876]
[1751240819148,0.63877,2504.2,2504.1,25.26378]
[1751240819344,0.63877,2504.2,2504.1,26.56868]
[1751240819544,0.63877,2504.2,2504.1,25.9299]
[1751240820645,0.63877,2504.2,2504.1,26.5687]
[1751240821746,0.63874,2504.4,2504.3,0.63874]
[1751240822450,0.63869,2504.5,2504.4,0.63872]
[1751240822650,0.63869,2504.5,2504.4,1.4341]
[1751240822840,0.63869,2504.5,2504.4,2.506]
[1751240823148,0.63869,2504.5,2504.2,3.2078]
[1751240823149,0.63874,2504.3,2504.2,24.614]
[1751240823350,5.30877203,2504.3,2504.2,24.614]
[1751240824844,0.63873,2504.4,2504.3,0.63873]
[1751240825046,0.63871,2504.5,2504.4,0.63869]
[1751240825449,0.63871,2504.5,2504.4,2.06499]
[1751240827051,0.63871,2504.5,2504.4,1.4263]
[1751240827453,0.63872,2504.4,2504.3,28.8986]
[1751240828644,0.63872,2504.4,2504.3,29.53734]
[1751240829241,0.63872,2504.4,2504.3,28.8986]
[1751240829752,5.74493203,2504.8,2504.5,0.63869]
[1751240830050,0.63864,2504.7,2504.6,1.0688]
[1751240833151,0.63864,2504.7,2504.6,1.70747]
[1751240833549,0.6386,2504.9,2504.8,0.6386]
[1751240834352,0.63862,2504.8,2504.7,0.63862]
[1751240834655,0.63863,2504.8,2504.7,0.63863]
[1751240834854,0.6386,2504.9,2504.8,0.6386]
[1751240835451,0.6386,2504.9,2504.8,1.7105]
[1751240837256,3.2078,2505.1,2504.8,1.0719]
[1751240837455,0.63857,2505.0,2504.9,2.04838]
[1751240838051,0.63857,2505.0,2504.9,42.84838]
[1751240838251,0.63857,2505.0,2504.9,40.8]
[1751240838751,0.63859,2504.9,2504.8,1.0719]
[1751240838951,0.63859,2504.9,2504.8,24.608]
[1751240839256,0.63859,2504.9,2504.8,25.24662]
[1751240839453,0.63859,2504.9,2504.8,24.608]
[1751240839756,0.63859,2504.9,2504.8,25.24662]
[1751240839954,0.63859,2504.9,2504.8,24.608]
[1751240840354,0.63859,2504.9,2504.8,25.9282]
[1751240840551,3.2078,2505.1,2504.7,39.75405]
[1751240840757,1.59661,2504.7,2504.1,1.59756263]
[1751240841052,0.63879,2504.1,2504.0,3.2078]
[1751240841556,4.03959,2504.1,2504.0,3.2078]
[1751240841751,0.6389,2503.7,2503.6,7.5063]
[1751240841953,0.63897,2503.4,2503.3,31.179]
[1751240843655,0.63897,2503.4,2503.3,6.435]
[1751240843854,0.63897,2503.4,2503.2,3.84682]
[1751240843855,6.26726203,2503.8,2503.2,3.2078]
[1751240844060,0.639,2503.3,2503.2,3.2078]
[1751240844361,0.63899,2503.4,2503.2,3.2078]
[1751240844562,0.639,2503.3,2503.2,3.2078]
[1751240845061,0.63896,2503.5,2503.3,0.639]
[1751240845259,0.63891,2503.7,2503.5,0.63895]
[1751240845457,7.87783203,2503.9,2503.3,1.394]
[1751240845658,0.63892,2503.7,2503.4,25.36896]
[1751240845857,7.8415,2504.0,2503.5,3.2078]
[1751240846065,2.0972,2504.1,2503.8,3.2078]
[1751240846263,0.63883,2504.0,2503.8,3.84666]
[1751240846564,0.63885,2503.9,2503.8,3.2078]
[1751240848973,0.63884,2504.0,2503.8,3.2078]
[1751240849173,0.63884,2504.0,2503.8,3.84667]
[1751240849374,2.0972,2504.1,2503.8,3.84667]
[1751240849770,0.63882,2504.0,2503.8,3.2078]
[1751240850072,2.0972,2504.1,2503.8,3.2078]
[1751240850073,0.63885,2503.9,2503.8,3.2078]
[1751240850970,4.67003203,2504.4,2503.9,0.63883]
[1751240851171,0.63881,2504.1,2503.9,6.436]
[1751240851371,0.63881,2504.1,2504.0,1.4314]
[1751240853471,0.63885,2503.9,2503.8,3.2078]
[1751240854066,0.6389,2503.7,2503.6,25.7792]
[1751240854268,0.63889,2503.8,2503.6,26.41812]
[1751240854476,0.6389,2503.7,2503.6,26.41812]
[1751240856772,0.6389,2503.7,2503.6,29.62592]
[1751240856976,0.6389,2503.7,2503.6,28.987]
[1751240857274,0.6389,2503.7,2503.6,4.294]
[1751240857476,0.6389,2503.7,2503.6,28.966]
[1751240858371,0.6389,2503.7,2503.6,4.294]
[1751240858574,0.6389,2503.7,2503.6,28.966]
[1751240859978,0.6389,2503.7,2503.6,30.2985]
[1751240860672,0.6389,2503.7,2503.6,30.93742]
[1751240860875,0.63887,2503.8,2503.7,0.6389]
[1751240861078,0.6389,2503.7,2503.6,30.93741]
[1751240861979,0.6389,2503.7,2503.6,30.2985]
[1751240862377,0.6389,2503.7,2503.6,30.93742]
[1751240863580,0.6389,2503.7,2503.6,30.9374]
[1751240863980,0.6389,2503.7,2503.6,30.2985]
[1751240864481,0.6389,2503.7,2503.6,30.93742]
[1751240865483,0.6389,2503.7,2503.6,30.2985]
[1751240865783,0.6389,2503.7,2503.6,30.93742]
[1751240867184,4.67003203,2503.9,2503.7,0.63889]
[1751240867185,0.63889,2503.8,2503.7,0.63889]
[1751240867775,0.6389,2503.7,2503.6,3.2078]
[1751240868283,4.00052,2504.1,2503.6,3.2078]
[1751240868284,0.63889,2503.8,2503.6,3.2078]
[1751240868484,5.56947771,2504.6,2503.8,1.59719]
[1751240868684,0.63872,2504.4,2504.3,0.63874]
[1751240868984,0.63872,2504.4,2504.3,26.32764]
[1751240869284,0.63872,2504.4,2504.3,27.1037]
[1751240869690,5.30874203,2504.5,2504.3,27.1037]
[1751240869982,4.48267771,2504.7,2504.3,27.1037]
[1751240870185,2.36167771,2504.6,2504.5,0.63868]
[1751240870778,0.6387,2504.5,2504.3,27.1037]
[1751240871081,3.00036771,2504.6,2504.4,0.63871]
[1751240871277,3.00036771,2504.6,2504.4,2.04671]
[1751240871486,3.00036771,2504.6,2504.5,0.63869]
[1751240872185,3.00036771,2504.6,2504.4,2.0467]
[1751240872186,0.63869,2504.5,2504.4,2.0467]
[1751240872481,0.63869,2504.5,2504.4,1.408]
[1751240872679,0.63872,2504.4,2504.3,25.6889]
[1751240872885,0.63874,2504.3,2504.2,9.6628]
[1751240873088,0.63874,2504.3,2504.2,34.2958]
[1751240873782,0.63874,2504.3,2504.2,3.2078]
[1751240873988,5.78953203,2504.5,2504.1,40.8]
[1751240873989,0.63877,2504.2,2504.1,24.628]
[1751240874187,5.30880203,2504.2,2504.1,24.628]
[1751240876190,0.63882,2504.0,2503.9,3.2078]
[1751240876384,0.63882,2504.0,2503.9,27.8278]
[1751240876785,0.63882,2504.0,2503.9,3.2078]
[1751240878986,7.05603203,2504.4,2503.9,3.2078]
[1751240879190,0.63882,2504.1,2503.9,5.15634]
[1751240879387,0.63879,2504.2,2504.0,24.62]
[1751240879691,1.1154,2504.7,2504.0,25.9297]
[1751240879885,1.1154,2504.7,2504.4,0.63872]
[1751240879886,0.63867,2504.6,2504.4,0.63872]
[1751240880081,0.63867,2504.6,2504.3,3.2078]
[1751240880285,0.63867,2504.6,2504.4,0.63871]
[1751240880487,0.63867,2504.6,2504.4,1.94841]
[1751240880882,0.63869,2504.5,2504.4,2.3283]
[1751240881088,0.63868,2504.6,2504.5,0.63868]
[1751240881287,0.63868,2504.6,2504.4,2.967]
[1751240881691,0.63868,2504.6,2504.4,1.6573]
[1751240882089,0.63869,2504.5,2504.4,1.6573]
[1751240882285,0.63869,2504.6,2504.4,1.6573]
[1751240882692,0.63869,2504.5,2504.4,1.0186]
[1751240882892,0.63874,2504.3,2504.2,40.8]
[1751240883098,5.30877203,2504.3,2504.2,40.8]
[1751240884097,0.63878,2504.2,2504.0,29.48521]
[1751240884297,0.63877,2504.2,2504.0,4.86521]
[1751240884596,0.63877,2504.2,2504.0,29.48421]
[1751240884790,0.63879,2504.1,2504.0,28.8454]
[1751240885189,0.63879,2504.1,2504.0,4.2264]
[1751240885388,0.63879,2504.1,2504.0,3.2078]
[1751240886189,0.63878,2504.2,2504.0,3.2078]
[1751240886395,0.63879,2504.1,2504.0,3.84661]
[1751240886996,0.63879,2504.2,2504.0,3.84661]
[1751240888093,0.63879,2504.1,2504.0,3.84661]
[1751240888299,5.30879203,2504.3,2504.2,0.63877]
[1751240888500,5.30879203,2504.3,2504.0,1.4184]
[1751240888701,5.30879203,2504.3,2504.1,0.63879]
[1751240888895,0.63876,2504.3,2504.2,3.2078]
[1751240889095,0.63872,2504.4,2504.3,0.63874]
[1751240889294,0.63874,2504.3,2504.2,3.2078]
[1751240894407,0.63874,2504.3,2504.2,3.84657]
[1751240894906,0.63874,2504.3,2504.2,3.2078]
[1751240895307,0.63874,2504.3,2504.2,4.2768]
[1751240896407,0.63874,2504.4,2504.2,4.91555]
[1751240897009,0.63874,2504.4,2504.3,0.63874]
[1751240897809,1.05,2504.5,2504.2,4.91555]
[1751240898008,0.63874,2504.3,2504.2,4.91555]
[1751240898506,0.63874,2504.4,2504.2,4.91555]
[1751240899010,0.63874,2504.4,2504.3,0.63874]
[1751240899212,1.68871,2504.5,2504.4,0.63872]
[1751240899706,1.68871,2504.5,2504.2,4.2768]
[1751240899707,1.68871,2504.5,2504.3,0.63872]
[1751240899910,2.24554836,2504.4,2504.3,0.63872]
[1751240900105,2.24554836,2504.4,2504.3,2.06302]
[1751240900906,5.56947771,2504.6,2504.3,2.06302]
[1751240900907,4.60722607,2504.6,2504.5,0.63869]
[1751240901214,2.36167771,2504.7,2504.6,0.63867]
[1751240901511,2.36167771,2504.7,2504.6,1.3437]
[1751240901512,4.60722607,2504.7,2504.6,1.3437]
[1751240901810,5.24586607,2504.7,2504.6,3.00287]
[1751240902210,4.60722607,2504.7,2504.6,3.00287]
[1751240903309,2.24554836,2504.7,2504.6,3.00287]
[1751240905006,5.56947771,2505.3,2504.6,2.3642]
[1751240905206,2.88411836,2505.0,2504.9,0.63859]
[1751240905406,4.268,2505.3,2505.0,0.63856]
[1751240905612,2.24554836,2505.1,2505.0,1.71116]
[1751240905911,2.88408836,2505.1,2505.0,1.0726]
[1751240906708,0.63853,2505.2,2505.0,1.71117]
[1751240906903,2.88408836,2505.1,2505.0,1.0726]
[1751240907106,0.63859,2504.9,2504.8,4.2585]
[1751240907308,2.88413836,2504.9,2504.8,3.2078]
[1751240907508,0.63859,2504.9,2504.8,3.2078]
[1751240912210,4.29984836,2505.0,2504.6,1.71125]
[1751240912414,2.24554836,2504.7,2504.6,4.91905]
[1751240912613,2.88418836,2504.7,2504.6,4.91905]
[1751240912916,2.24554836,2504.7,2504.6,4.91905]
[1751240913418,2.88418836,2504.7,2504.6,4.91905]
[1751240913618,2.88418836,2504.7,2504.6,4.2804]
[1751240914019,2.88418836,2504.7,2504.6,4.91907]
[1751240914317,2.88418836,2504.7,2504.6,4.2804]
[1751240915316,0.63877,2504.2,2504.1,1.59756263]
[1751240915516,0.6389,2503.7,2503.6,0.9812]
[1751240915818,2.88444836,2503.7,2503.6,0.9812]
[1751240916620,2.88444836,2503.7,2503.5,3.2078]
[1751240916621,0.63892,2503.6,2503.5,3.2078]
[1751240917320,2.88446836,2503.6,2503.5,3.2078]
[1751240917816,0.63892,2503.6,2503.5,3.2078]
[1751240918319,0.63892,2503.6,2503.5,4.6461]
[1751240920425,0.63891,2503.7,2503.5,5.28504]
[1751240920820,0.63891,2503.7,2503.5,36.33804]
[1751240921419,4.67372532,2504.1,2503.5,35.6991]
[1751240921623,0.63886,2503.9,2503.7,0.63889]
[1751240921822,0.63886,2503.9,2503.5,35.6991]
[1751240921823,3.2078,2504.2,2503.8,1.4369]
[1751240922024,0.63883,2504.0,2503.9,1.04]
[1751240922224,3.84661,2504.1,2503.9,1.67885]
[1751240922425,3.2078,2504.1,2503.9,1.04]
[1751240922626,0.63882,2504.0,2503.9,1.04]
[1751240923229,4.39787771,2504.5,2503.9,9.2478]
[1751240923230,7.60567771,2504.5,2503.9,9.2478]
[1751240923429,5.56947771,2504.5,2504.0,8.9259]
[1751240923728,3.8465,2504.5,2504.3,0.63872]
[1751240923928,3.8465,2504.5,2504.4,3.06462]
[1751240924228,3.8465,2504.5,2504.4,2.4259]
[1751240924729,3.2078,2504.5,2504.4,3.06462]
[1751240925224,0.63863,2504.8,2504.4,2.4259]
[1751240925429,0.63865,2504.7,2504.5,0.63869]
[1751240925630,0.63865,2504.7,2504.5,2.07959]
[1751240925827,0.63863,2504.8,2504.6,0.63866]
[1751240926025,3.2078,2504.9,2504.5,1.4409]
[1751240926226,3.2078,2504.9,2504.7,0.63863]
[1751240926527,3.8464,2504.9,2504.8,1.4409]
[1751240927424,3.2078,2504.9,2504.8,2.07952]
[1751240927625,7.88152532,2505.3,2504.8,1.4409]
[1751240927830,3.2078,2505.3,2505.1,0.63852]
[1751240928036,11.11272532,2505.6,2505.2,1.4302]
[1751240928037,0.63844,2505.6,2505.2,1.4302]
[1751240928332,8.51992532,2505.7,2505.4,0.63845]
[1751240928634,0.63842,2505.6,2505.4,0.63845]
[1751240929135,0.63845,2505.5,2505.2,7.8692]
[1751240929331,0.63843,2505.6,2505.2,7.8692]
[1751240929535,0.63844,2505.5,2505.3,2.06869]
[1751240929736,0.63843,2505.6,2505.4,0.63846]
[1751240930031,0.63843,2505.6,2505.3,1.4302]
[1751240930230,0.63843,2505.6,2505.4,0.63846]
[1751240930424,0.63842,2505.6,2505.4,0.63845]
[1751240930631,0.63842,2505.6,2505.3,2.06867]
[1751240930932,7.88152532,2505.7,2505.3,2.06868]
[1751240930933,0.63844,2505.5,2505.3,2.06868]
[1751240931235,0.63845,2505.5,2505.3,2.06868]
[1751240931729,7.88152532,2505.7,2505.3,1.4302]
[1751240931934,4.67372532,2505.4,2505.1,72.48553]
[1751240932233,5.31219532,2505.4,2505.2,0.63851]
[1751240932433,0.63849,2505.3,2505.2,1.3595]
[1751240932630,4.67372532,2505.4,2505.2,1.3595]
[1751240932631,5.31220532,2505.4,2505.2,1.3595]
[1751240933336,0.63845,2505.5,2505.3,0.63848]
[1751240933537,4.67372532,2505.6,2505.2,1.998]
[1751240933538,0.63846,2505.4,2505.2,1.998]
[1751240933836,0.63845,2505.5,2505.3,1.99799]
[1751240934232,0.63846,2505.4,2505.3,1.3595]
[1751240934734,4.67372532,2505.6,2505.3,1.99798]
[1751240934735,0.63845,2505.5,2505.3,1.99798]
[1751240935234,0.63846,2505.4,2505.3,1.99798]
[1751240935436,0.63846,2505.4,2505.3,1.3595]
[1751240936839,4.67372532,2505.6,2505.1,71.847]
[1751240937138,5.31215532,2505.6,2505.4,0.63845]
[1751240937337,0.9886,2505.9,2505.3,3.2078]
[1751240937538,0.63842,2505.6,2505.5,0.63842]
[1751240937733,0.63841,2505.7,2505.5,3.02582]
[1751240937942,0.63841,2505.6,2505.5,3.02582]
[1751240938239,0.63841,2505.6,2505.5,2.3874]
[1751240939738,7.88152532,2505.7,2505.3,3.2078]
[1751240939934,4.67372532,2505.4,2505.1,65.405]
[1751240940239,0.63851,2505.2,2505.1,65.405]
[1751240940936,0.63851,2505.2,2504.1,3.2078]
[1751240940937,0.63877,2504.2,2504.1,3.2078]
[1751240941238,7.88152532,2504.3,2503.8,2.38105823]
[1751240941440,0.63885,2503.9,2503.8,43.18105823]
[1751240941631,0.63885,2503.9,2503.8,2.38105823]
[1751240942028,9.47844532,2504.3,2503.7,6.65545823]
[1751240942029,0.63887,2503.8,2503.7,6.65545823]
[1751240942236,0.63897,2503.4,2503.3,3.2078]
[1751240942443,4.67372532,2503.4,2503.0,3.2078]
[1751240942636,6.435,2503.6,2503.1,42.135]
[1751240942637,4.67372532,2503.6,2503.1,42.135]
[1751240942836,4.67372532,2503.6,2503.2,1.335]
[1751240942837,0.639,2503.3,2503.2,1.335]
[1751240943939,0.63902,2503.2,2503.1,40.8]
[1751240944537,0.63904,2503.2,2503.0,3.2078]
[1751240944738,0.63905,2503.1,2503.0,3.2078]